[Event "*** Titled Tuesday Blitz"]
[Site "Chess.com"]
[Date "2018.09.04"]
[Round "5"]
[White "JSMastropiero"]
[Black "xberli"]
[Result "1-0"]
[WhiteElo "2379"]
[BlackElo "2534"]
[TimeControl "180+2"]
[EndTime "14:40:56 PDT"]
[Termination "JSMastropiero won by resignation"]

1. Nf3 {[%clk 0:03:01.9]} 1... Nf6 {[%clk 0:02:58.8]} 2. d4 {[%clk 0:03:00.9]}
2... g6 {[%clk 0:03:00]} 3. Nc3 {[%clk 0:03:00.7]} 3... Bg7 {[%clk 0:02:58.4]}
4. e4 {[%clk 0:03:00.4]} 4... d5 {[%clk 0:02:59.6]} 5. e5 {[%clk 0:02:55.3]}
5... Ne4 {[%clk 0:03:00.1]} 6. Nxe4 {[%clk 0:02:35.5]} 6... dxe4 {[%clk
0:03:02]} 7. Ng5 {[%clk 0:02:35.9]} 7... c5 {[%clk 0:03:01.4]} 8. Bb5+ {[%clk
0:02:15.5]} 8... Nc6 {[%clk 0:02:55.5]} 9. Bxc6+ {[%clk 0:02:09.5]} 9... bxc6
{[%clk 0:02:57.4]} 10. dxc5 {[%clk 0:02:08.5]} 10... Qa5+ {[%clk 0:02:51.2]} 11.
c3 {[%clk 0:02:03.1]} 11... Qxc5 {[%clk 0:02:46.8]} 12. e6 {[%clk 0:01:43.9]}
12... fxe6 {[%clk 0:02:24.9]} 13. Be3 {[%clk 0:01:36.8]} 13... Qd5 {[%clk
0:02:20.6]} 14. Qa4 {[%clk 0:01:32.5]} 14... O-O {[%clk 0:02:16.8]} 15. Rd1
{[%clk 0:01:28.8]} 15... Qb5 {[%clk 0:02:11.2]} 16. Qxe4 {[%clk 0:01:20.1]}
16... e5 {[%clk 0:01:39.3]} 17. Qc2 {[%clk 0:00:52.1]} 17... Bf5 {[%clk
0:01:26.6]} 18. Qb3+ {[%clk 0:00:48.5]} 18... Qxb3 {[%clk 0:01:25.1]} 19. axb3
{[%clk 0:00:49.7]} 19... h6 {[%clk 0:01:24.1]} 20. Nf3 {[%clk 0:00:49.1]} 20...
Bg4 {[%clk 0:01:22.9]} 21. Ra1 {[%clk 0:00:44]} 21... Bxf3 {[%clk 0:00:52.5]}
22. gxf3 {[%clk 0:00:45.9]} 22... Rxf3 {[%clk 0:00:53.7]} 23. Ke2 {[%clk
0:00:39.6]} 23... Rff8 {[%clk 0:00:45.9]} 24. Ra6 {[%clk 0:00:36.6]} 24... Rfc8
{[%clk 0:00:37.1]} 25. b4 {[%clk 0:00:37.3]} 25... Kf7 {[%clk 0:00:38.2]} 26.
Rha1 {[%clk 0:00:27]} 26... g5 {[%clk 0:00:30.2]} 27. Kf3 {[%clk 0:00:25.8]}
27... Bf6 {[%clk 0:00:27.2]} 28. Ke4 {[%clk 0:00:26.3]} 28... h5 {[%clk
0:00:25.3]} 29. Rxa7 {[%clk 0:00:22.4]} 29... Rab8 {[%clk 0:00:21.4]} 30. Rd7
{[%clk 0:00:19]} 30... Ke6 {[%clk 0:00:21.8]} 31. Raa7 {[%clk 0:00:18.9]} 31...
Rb5 {[%clk 0:00:22.4]} 32. Bc5 {[%clk 0:00:17.5]} 32... Re8 {[%clk 0:00:22.1]}
33. Rdc7 {[%clk 0:00:18.3]} 33... g4 {[%clk 0:00:19.8]} 34. Rxc6+ {[%clk
0:00:19.3]} 34... Kf7 {[%clk 0:00:21.1]} 35. Rcc7 {[%clk 0:00:18.8]} 35... h4
{[%clk 0:00:21]} 36. Rab7 {[%clk 0:00:19.4]} 36... Rxb7 {[%clk 0:00:21.6]} 37.
Rxb7 {[%clk 0:00:20.7]} 37... Kg6 {[%clk 0:00:21.6]} 38. b5 {[%clk 0:00:21.6]}
38... e6 {[%clk 0:00:22.3]} 39. b6 {[%clk 0:00:22]} 39... Rc8 {[%clk 0:00:22.5]}
40. Rc7 {[%clk 0:00:22.7]} 40... Rb8 {[%clk 0:00:22.1]} 41. b7 {[%clk
0:00:23.2]} 41... h3 {[%clk 0:00:22.8]} 42. Ba7 {[%clk 0:00:23.3]} 42... Rd8
{[%clk 0:00:22.9]} 43. b8=Q {[%clk 0:00:23.4]} 43... Rxb8 {[%clk 0:00:22.5]} 1-0

[Event "*** Titled Tuesday Blitz"]
[Site "Chess.com"]
[Date "2018.09.04"]
[Round "5"]
[White "ozates"]
[Black "colemman"]
[Result "0-1"]
[WhiteElo "2382"]
[BlackElo "2475"]
[TimeControl "180+2"]
[EndTime "14:41:01 PDT"]
[Termination "colemman won by resignation"]

1. e4 {[%clk 0:02:53.5]} 1... c5 {[%clk 0:03:00.9]} 2. Nf3 {[%clk 0:02:48]} 2...
e6 {[%clk 0:03:02.3]} 3. d4 {[%clk 0:02:48.6]} 3... cxd4 {[%clk 0:03:04.2]} 4.
Nxd4 {[%clk 0:02:50.5]} 4... Nf6 {[%clk 0:03:05.7]} 5. Nc3 {[%clk 0:02:51.9]}
5... Nc6 {[%clk 0:03:07.3]} 6. g3 {[%clk 0:02:51.3]} 6... Bb4 {[%clk 0:03:07.9]}
7. Bg2 {[%clk 0:02:51]} 7... O-O {[%clk 0:03:09.3]} 8. O-O {[%clk 0:02:51.7]}
8... d5 {[%clk 0:02:57.9]} 9. exd5 {[%clk 0:02:41.1]} 9... Bxc3 {[%clk
0:02:55.7]} 10. dxc6 {[%clk 0:02:08.8]} 10... Bxd4 {[%clk 0:02:47.5]} 11. cxb7
{[%clk 0:02:09.5]} 11... Bxb7 {[%clk 0:02:47.9]} 12. Bxb7 {[%clk 0:02:09.6]}
12... Rb8 {[%clk 0:02:48.6]} 13. Bg2 {[%clk 0:02:01.1]} 13... Bxb2 {[%clk
0:02:48.6]} 14. Bxb2 {[%clk 0:01:59.7]} 14... Rxb2 {[%clk 0:02:39.9]} 15. Qc1
{[%clk 0:01:57.9]} 15... Qb6 {[%clk 0:02:34.5]} 16. c4 {[%clk 0:01:57.5]} 16...
Rc8 {[%clk 0:02:33.7]} 17. Rb1 {[%clk 0:01:53.2]} 17... Rxb1 {[%clk 0:02:31]}
18. Qxb1 {[%clk 0:01:55.1]} 18... Rxc4 {[%clk 0:02:29.6]} 19. Qxb6 {[%clk
0:01:52]} 19... axb6 {[%clk 0:02:29.4]} 20. Rb1 {[%clk 0:01:53.5]} 20... Nd7
{[%clk 0:02:25.6]} 21. Bf1 {[%clk 0:01:52.7]} 21... Rc7 {[%clk 0:02:17.5]} 22.
Bb5 {[%clk 0:01:50.7]} 22... Nf6 {[%clk 0:02:15.1]} 23. Bd3 {[%clk 0:01:43.6]}
23... Nd5 {[%clk 0:02:07.4]} 24. Rb2 {[%clk 0:01:37]} 24... Kf8 {[%clk
0:02:02.7]} 25. Be4 {[%clk 0:01:36.5]} 25... Rc6 {[%clk 0:02:02.6]} 26. Rd2
{[%clk 0:01:29.8]} 26... Rc5 {[%clk 0:02:01.5]} 27. Rb2 {[%clk 0:01:29.7]} 27...
b5 {[%clk 0:02:01.6]} 28. Kg2 {[%clk 0:01:27.7]} 28... f5 {[%clk 0:01:58.4]} 29.
Bd3 {[%clk 0:01:27.4]} 29... Nc3 {[%clk 0:01:51.1]} 30. Rc2 {[%clk 0:01:24.1]}
30... b4 {[%clk 0:01:48.5]} 31. Rb2 {[%clk 0:01:11.9]} 31... Nd5 {[%clk
0:01:49.1]} 32. Be2 {[%clk 0:01:12]} 32... Ke7 {[%clk 0:01:45.7]} 33. Bf3 {[%clk
0:01:12.8]} 33... Rb5 {[%clk 0:01:41.7]} 34. a4 {[%clk 0:01:12.2]} 34... Rb8
{[%clk 0:01:40.7]} 35. a5 {[%clk 0:01:12.8]} 35... Kd6 {[%clk 0:01:41.1]} 36. a6
{[%clk 0:01:13]} 36... Kc5 {[%clk 0:01:39.7]} 37. Rc2+ {[%clk 0:01:10.6]} 37...
Kb6 {[%clk 0:01:37.9]} 38. Re2 {[%clk 0:01:08.2]} 38... Nc7 {[%clk 0:01:29.5]}
39. Rc2 {[%clk 0:01:07.4]} 39... Nxa6 {[%clk 0:01:28.8]} 40. Rc6+ {[%clk
0:01:07.5]} 40... Ka5 {[%clk 0:01:22.6]} 41. Rxe6 {[%clk 0:01:05.4]} 41... g6
{[%clk 0:01:22.9]} 42. Be2 {[%clk 0:01:03.3]} 42... Nc5 {[%clk 0:01:22.7]} 43.
Rc6 {[%clk 0:01:03.7]} 43... Rb5 {[%clk 0:01:17]} 44. Bxb5 {[%clk 0:01:01]}
44... Kxb5 {[%clk 0:01:18.7]} 45. Rd6 {[%clk 0:00:57.1]} 45... b3 {[%clk
0:01:17.4]} 46. Rd1 {[%clk 0:00:56.9]} 46... b2 {[%clk 0:01:09.9]} 47. Kf3
{[%clk 0:00:54.9]} 47... Kc4 {[%clk 0:01:04.8]} 48. Kf4 {[%clk 0:00:52.7]} 48...
Nd3+ {[%clk 0:01:02.7]} 49. Kg5 {[%clk 0:00:48.3]} 49... Nc1 {[%clk 0:00:58.8]}
50. Rd8 {[%clk 0:00:38.4]} 50... b1=Q {[%clk 0:00:59.2]} 0-1

[Event "*** Titled Tuesday Blitz"]
[Site "Chess.com"]
[Date "2018.09.04"]
[Round "5"]
[White "Supernotar"]
[Black "Bauxi435"]
[Result "1/2-1/2"]
[WhiteElo "2447"]
[BlackElo "2356"]
[TimeControl "180+2"]
[EndTime "14:41:03 PDT"]
[Termination "Game drawn by agreement"]

1. d4 {[%clk 0:03:00.5]} 1... Nf6 {[%clk 0:03:00.9]} 2. c4 {[%clk 0:03:00.8]}
2... e6 {[%clk 0:03:02.2]} 3. Nf3 {[%clk 0:03:01.2]} 3... d5 {[%clk 0:03:03.7]}
4. e3 {[%clk 0:03:01.2]} 4... a6 {[%clk 0:03:03.3]} 5. Nbd2 {[%clk 0:03:02.1]}
5... dxc4 {[%clk 0:03:04.2]} 6. Bxc4 {[%clk 0:03:01.3]} 6... b5 {[%clk
0:03:00.2]} 7. Bb3 {[%clk 0:03:02]} 7... Bb7 {[%clk 0:03:01.7]} 8. O-O {[%clk
0:03:01.9]} 8... Nbd7 {[%clk 0:03:03.2]} 9. a4 {[%clk 0:03:02.7]} 9... b4 {[%clk
0:03:01.4]} 10. a5 {[%clk 0:03:00.8]} 10... c5 {[%clk 0:03:01.3]} 11. Qe2 {[%clk
0:03:01.8]} 11... Be7 {[%clk 0:03:01]} 12. Rd1 {[%clk 0:03:02.6]} 12... O-O
{[%clk 0:03:01]} 13. Nc4 {[%clk 0:03:03.7]} 13... Qc7 {[%clk 0:03:01.7]} 14.
Nfe5 {[%clk 0:03:04.7]} 14... Nxe5 {[%clk 0:03:00.2]} 15. dxe5 {[%clk
0:03:05.5]} 15... Nd7 {[%clk 0:02:50.3]} 16. f4 {[%clk 0:03:06.2]} 16... Rfd8
{[%clk 0:02:50.9]} 17. Bd2 {[%clk 0:02:59.2]} 17... Be4 {[%clk 0:02:46.7]} 18.
Be1 {[%clk 0:02:59.6]} 18... Nf8 {[%clk 0:02:40.2]} 19. Nb6 {[%clk 0:02:57.2]}
19... Rxd1 {[%clk 0:02:15.5]} 20. Rxd1 {[%clk 0:02:52.8]} 20... Rd8 {[%clk
0:02:06.7]} 21. Qxa6 {[%clk 0:02:49.7]} 21... Rxd1 {[%clk 0:02:06.2]} 22. Bxd1
{[%clk 0:02:50.3]} 22... Qd8 {[%clk 0:02:04.9]} 23. Be2 {[%clk 0:02:50.5]} 23...
Bh4 {[%clk 0:01:53.6]} 24. g3 {[%clk 0:02:45.5]} 24... Be7 {[%clk 0:01:55]} 25.
Qa7 {[%clk 0:02:26.4]} 25... c4 {[%clk 0:01:47.2]} 26. Nxc4 {[%clk 0:02:20.9]}
26... Ba8 {[%clk 0:01:21.1]} 27. Nb6 {[%clk 0:02:17.4]} 27... Bc6 {[%clk
0:01:21.1]} 28. Nc8 {[%clk 0:02:03.9]} 28... Qxc8 {[%clk 0:01:06.3]} 29. Qxe7
{[%clk 0:02:04.1]} 29... Ba8 {[%clk 0:01:05.1]} 30. Bxb4 {[%clk 0:02:03.5]}
30... Ng6 {[%clk 0:01:04.2]} 31. Qc5 {[%clk 0:02:01.4]} 31... Qb8 {[%clk
0:00:58.7]} 32. a6 {[%clk 0:01:57.8]} 32... h6 {[%clk 0:00:54.6]} 33. Bb5 {[%clk
0:01:52]} 33... Bd5 {[%clk 0:00:43.5]} 34. a7 {[%clk 0:01:46.9]} 34... Qb7
{[%clk 0:00:42.1]} 35. Bf1 {[%clk 0:01:39.6]} 35... Kh7 {[%clk 0:00:37.5]} 36.
h4 {[%clk 0:01:40.1]} 36... h5 {[%clk 0:00:32.9]} 37. Qb5 {[%clk 0:01:26.3]}
37... Qxa7 {[%clk 0:00:30.9]} 38. Bc5 {[%clk 0:01:25]} 38... Qa1 {[%clk
0:00:25.4]} 39. b4 {[%clk 0:01:20.3]} 39... Qe1 {[%clk 0:00:24.3]} 40. Qe2
{[%clk 0:01:20.7]} 40... Qxg3+ {[%clk 0:00:24.9]} 41. Bg2 {[%clk 0:01:18.8]}
41... Nxh4 {[%clk 0:00:21.6]} 42. e4 {[%clk 0:01:19.2]} 42... Bc4 {[%clk
0:00:20.5]} 43. Qf2 {[%clk 0:01:13.4]} 43... Qxf2+ {[%clk 0:00:18.3]} 44. Kxf2
{[%clk 0:01:13.4]} 44... Nxg2 {[%clk 0:00:20.2]} 45. Kxg2 {[%clk 0:01:14.8]}
45... g5 {[%clk 0:00:21.1]} 46. fxg5 {[%clk 0:01:14.7]} 46... Kg6 {[%clk
0:00:22.2]} 47. Be7 {[%clk 0:01:16]} 47... Bb5 {[%clk 0:00:22.9]} 48. Kf3 {[%clk
0:01:16.3]} 48... Bc4 {[%clk 0:00:23.9]} 49. Bf6 {[%clk 0:01:17.1]} 49... Bb5
{[%clk 0:00:25.3]} 50. Ke3 {[%clk 0:01:18.1]} 50... h4 {[%clk 0:00:23.8]} 51.
Kf4 {[%clk 0:01:19.3]} 51... Kh5 {[%clk 0:00:25.1]} 52. Be7 {[%clk 0:01:17.6]}
52... Bc6 {[%clk 0:00:26.1]} 53. Bc5 {[%clk 0:01:17.4]} 53... Bb5 {[%clk
0:00:27.5]} 54. Bf2 {[%clk 0:01:17]} 54... Bc6 {[%clk 0:00:28.7]} 55. Bg1 {[%clk
0:01:15.5]} 55... Bb5 {[%clk 0:00:30]} 56. Bh2 {[%clk 0:01:17]} 56... Bc6 {[%clk
0:00:31.1]} 57. Bg1 {[%clk 0:01:14.1]} 57... Bb5 {[%clk 0:00:32]} 1/2-1/2

[Event "*** Titled Tuesday Blitz"]
[Site "Chess.com"]
[Date "2018.09.04"]
[Round "5"]
[White "chesstatour"]
[Black "epccmelech"]
[Result "1-0"]
[WhiteElo "1989"]
[BlackElo "1598"]
[TimeControl "180+2"]
[EndTime "14:41:09 PDT"]
[Termination "chesstatour won on time"]

1. c4 {[%clk 0:03:01.9]} 1... e6 {[%clk 0:02:58.7]} 2. d4 {[%clk 0:02:57.2]}
2... f5 {[%clk 0:02:58.9]} 3. g3 {[%clk 0:02:54.6]} 3... Bb4+ {[%clk 0:02:56.8]}
4. Nc3 {[%clk 0:02:54.6]} 4... Nf6 {[%clk 0:02:55.3]} 5. Bg2 {[%clk 0:02:55.6]}
5... O-O {[%clk 0:02:54.8]} 6. Nh3 {[%clk 0:02:56.2]} 6... c6 {[%clk 0:02:41.7]}
7. O-O {[%clk 0:02:54.3]} 7... d5 {[%clk 0:02:32.5]} 8. a3 {[%clk 0:02:07.7]}
8... Bxc3 {[%clk 0:02:31.3]} 9. bxc3 {[%clk 0:02:09.6]} 9... dxc4 {[%clk
0:02:14.9]} 10. a4 {[%clk 0:02:10.3]} 10... Nd5 {[%clk 0:02:12.8]} 11. Qc2
{[%clk 0:02:10.8]} 11... Nd7 {[%clk 0:02:01.9]} 12. Bf4 {[%clk 0:01:52.3]} 12...
N7f6 {[%clk 0:01:52.1]} 13. a5 {[%clk 0:01:47.2]} 13... Nxf4 {[%clk 0:01:43.2]}
14. Nxf4 {[%clk 0:01:42.3]} 14... Nd5 {[%clk 0:01:42.6]} 15. Ra4 {[%clk
0:01:39.9]} 15... Nxf4 {[%clk 0:01:39.5]} 16. gxf4 {[%clk 0:01:38.1]} 16... Qh4
{[%clk 0:01:36.9]} 17. e3 {[%clk 0:01:35.5]} 17... Rf6 {[%clk 0:01:30.1]} 18. f3
{[%clk 0:01:21.1]} 18... Rh6 {[%clk 0:01:23]} 19. h3 {[%clk 0:00:46.7]} 19...
Qg3 {[%clk 0:01:22.7]} 20. Kh1 {[%clk 0:00:33.1]} 20... Bd7 {[%clk 0:01:17.7]}
21. Rxc4 {[%clk 0:00:26.3]} 21... Rf8 {[%clk 0:01:14.6]} 22. Qf2 {[%clk
0:00:25.6]} 22... Qxf2 {[%clk 0:01:04.5]} 23. Rxf2 {[%clk 0:00:25.8]} 23... a6
{[%clk 0:01:00.9]} 24. Rb2 {[%clk 0:00:11.8]} 24... Bc8 {[%clk 0:00:58.3]} 25.
Rc5 {[%clk 0:00:09.4]} 25... Rd8 {[%clk 0:00:50.2]} 26. c4 {[%clk 0:00:09.1]}
26... Rf6 {[%clk 0:00:38.9]} 27. Re5 {[%clk 0:00:06.2]} 27... Rf7 {[%clk
0:00:32.8]} 28. Bf1 {[%clk 0:00:07]} 28... Kf8 {[%clk 0:00:27.2]} 29. Kg2 {[%clk
0:00:05.6]} 29... Re7 {[%clk 0:00:22.3]} 30. Bd3 {[%clk 0:00:06.3]} 30... g6
{[%clk 0:00:20.7]} 31. Kf2 {[%clk 0:00:06.9]} 31... Kf7 {[%clk 0:00:20]} 32. Rd2
{[%clk 0:00:06.9]} 32... Kf6 {[%clk 0:00:18.6]} 33. h4 {[%clk 0:00:07.2]} 33...
Rc7 {[%clk 0:00:12.9]} 34. Rc5 {[%clk 0:00:05.6]} 34... Rd6 {[%clk 0:00:09.7]}
35. Be2 {[%clk 0:00:05.7]} 35... Rd8 {[%clk 0:00:08.8]} 36. Rb2 {[%clk
0:00:06.7]} 36... Re7 {[%clk 0:00:07.2]} 37. Rd2 {[%clk 0:00:07.4]} 37... Kf7
{[%clk 0:00:06.4]} 38. e4 {[%clk 0:00:08.1]} 38... Kg7 {[%clk 0:00:05.9]} 39.
Ke3 {[%clk 0:00:08.6]} 1-0

[Event "*** Titled Tuesday Blitz"]
[Site "Chess.com"]
[Date "2018.09.04"]
[Round "5"]
[White "area_5"]
[Black "Divertissement"]
[Result "1-0"]
[WhiteElo "2581"]
[BlackElo "2531"]
[TimeControl "180+2"]
[EndTime "14:41:10 PDT"]
[Termination "area_5 won by resignation"]

1. b3 {[%clk 0:03:01.9]} 1... e5 {[%clk 0:02:56.4]} 2. Bb2 {[%clk 0:03:02.8]}
2... Nc6 {[%clk 0:02:58]} 3. Nf3 {[%clk 0:03:04.1]} 3... e4 {[%clk 0:02:48.2]}
4. Ne5 {[%clk 0:03:04.5]} 4... Nf6 {[%clk 0:02:43.7]} 5. e3 {[%clk 0:03:02.2]}
5... Bd6 {[%clk 0:02:38.9]} 6. Ng4 {[%clk 0:02:56.5]} 6... Be7 {[%clk
0:02:36.3]} 7. Nxf6+ {[%clk 0:02:52.3]} 7... Bxf6 {[%clk 0:02:36.8]} 8. Bxf6
{[%clk 0:02:53.3]} 8... Qxf6 {[%clk 0:02:38.2]} 9. Nc3 {[%clk 0:02:55.2]} 9...
Qe5 {[%clk 0:02:21.1]} 10. f4 {[%clk 0:02:48.5]} 10... Qe7 {[%clk 0:02:02.7]}
11. Qh5 {[%clk 0:02:17.9]} 11... O-O {[%clk 0:01:56.1]} 12. Bc4 {[%clk
0:02:02.5]} 12... Nb4 {[%clk 0:01:35.5]} 13. Rc1 {[%clk 0:02:00.7]} 13... c6
{[%clk 0:01:36.7]} 14. a3 {[%clk 0:01:38]} 14... d5 {[%clk 0:01:37.4]} 15. axb4
{[%clk 0:01:08.6]} 15... dxc4 {[%clk 0:01:38]} 16. bxc4 {[%clk 0:01:09.5]} 16...
Qxb4 {[%clk 0:01:37.6]} 17. Nxe4 {[%clk 0:01:09.6]} 17... Qxc4 {[%clk
0:01:27.9]} 18. Nd6 {[%clk 0:01:04.2]} 18... Qb4 {[%clk 0:01:13.2]} 19. Nxc8
{[%clk 0:01:02.1]} 19... Rfxc8 {[%clk 0:01:10.1]} 20. Ke2 {[%clk 0:01:01.3]}
20... Qc4+ {[%clk 0:01:06.2]} 21. Kf2 {[%clk 0:01:01.3]} 21... Rd8 {[%clk
0:01:06.2]} 22. Rhd1 {[%clk 0:00:54.7]} 22... Rd5 {[%clk 0:01:07.5]} 23. Qf3
{[%clk 0:00:55.7]} 23... a5 {[%clk 0:01:01.2]} 24. e4 {[%clk 0:00:56.7]} 24...
Rd7 {[%clk 0:00:58]} 25. d3 {[%clk 0:00:55]} 25... Qc3 {[%clk 0:00:43.5]} 26. d4
{[%clk 0:00:55]} 26... Qc4 {[%clk 0:00:44.6]} 27. Qd3 {[%clk 0:00:53.5]} 27...
Qe6 {[%clk 0:00:41.4]} 28. c4 {[%clk 0:00:52.6]} 28... Qh6 {[%clk 0:00:32.9]}
29. Qg3 {[%clk 0:00:52.5]} 29... Rad8 {[%clk 0:00:29.3]} 30. d5 {[%clk 0:00:53]}
30... cxd5 {[%clk 0:00:30.6]} 31. cxd5 {[%clk 0:00:53.5]} 31... b5 {[%clk
0:00:30.7]} 32. e5 {[%clk 0:00:53.5]} 32... b4 {[%clk 0:00:22.6]} 33. d6 {[%clk
0:00:52.4]} 33... Qe6 {[%clk 0:00:21.5]} 34. Qd3 {[%clk 0:00:49.6]} 34... a4
{[%clk 0:00:21.6]} 35. Rc4 {[%clk 0:00:48.5]} 35... Rb7 {[%clk 0:00:20.1]} 36.
Qe4 {[%clk 0:00:44.2]} 36... Rbb8 {[%clk 0:00:20.3]} 37. f5 {[%clk 0:00:45]}
37... Qd7 {[%clk 0:00:19.6]} 38. e6 {[%clk 0:00:45.6]} 38... fxe6 {[%clk
0:00:20.8]} 39. fxe6 {[%clk 0:00:46.7]} 39... Qa7+ {[%clk 0:00:21.4]} 40. Kg3
{[%clk 0:00:47.5]} 40... Rf8 {[%clk 0:00:15]} 41. e7 {[%clk 0:00:41.9]} 41...
Qf2+ {[%clk 0:00:15.2]} 42. Kh3 {[%clk 0:00:42.9]} 42... Rfe8 {[%clk 0:00:16.7]}
43. d7 {[%clk 0:00:35.4]} 43... b3 {[%clk 0:00:13.3]} 44. dxe8=Q+ {[%clk
0:00:30.5]} 44... Rxe8 {[%clk 0:00:15.2]} 45. Rd8 {[%clk 0:00:30.6]} 1-0

[Event "*** Titled Tuesday Blitz"]
[Site "Chess.com"]
[Date "2018.09.04"]
[Round "5"]
[White "TST2014"]
[Black "indfraeng"]
[Result "1-0"]
[WhiteElo "2507"]
[BlackElo "1952"]
[TimeControl "180+2"]
[EndTime "14:41:11 PDT"]
[Termination "TST2014 won by checkmate"]

1. d4 {[%clk 0:00:44.2]} 1... Nf6 {[%clk 0:02:58.3]} 2. c4 {[%clk 0:00:45]} 2...
c5 {[%clk 0:02:57.1]} 3. d5 {[%clk 0:00:45.4]} 3... e6 {[%clk 0:02:56.3]} 4. Nc3
{[%clk 0:00:46.7]} 4... exd5 {[%clk 0:02:55.2]} 5. cxd5 {[%clk 0:00:48.2]} 5...
d6 {[%clk 0:02:56.6]} 6. e4 {[%clk 0:00:49.5]} 6... g6 {[%clk 0:02:57.4]} 7. h3
{[%clk 0:00:49.6]} 7... Bg7 {[%clk 0:02:57.5]} 8. Nf3 {[%clk 0:00:51.1]} 8...
O-O {[%clk 0:02:58.4]} 9. Bd3 {[%clk 0:00:52.6]} 9... a6 {[%clk 0:02:58]} 10. a4
{[%clk 0:00:52.6]} 10... Nbd7 {[%clk 0:02:54]} 11. O-O {[%clk 0:00:53.9]} 11...
Ne8 {[%clk 0:02:53.4]} 12. Bg5 {[%clk 0:00:54.1]} 12... f6 {[%clk 0:02:53.5]}
13. Bf4 {[%clk 0:00:54.3]} 13... Ne5 {[%clk 0:02:54.2]} 14. Nxe5 {[%clk
0:00:54.2]} 14... dxe5 {[%clk 0:02:54.7]} 15. Be3 {[%clk 0:00:55.3]} 15... b6
{[%clk 0:02:53.8]} 16. a5 {[%clk 0:00:55.9]} 16... Nd6 {[%clk 0:02:50.1]} 17.
axb6 {[%clk 0:00:56.4]} 17... c4 {[%clk 0:02:50.8]} 18. Be2 {[%clk 0:00:53.8]}
18... Bb7 {[%clk 0:02:47.4]} 19. Qa4 {[%clk 0:00:53.1]} 19... f5 {[%clk
0:02:47.6]} 20. f3 {[%clk 0:00:49.8]} 20... Rc8 {[%clk 0:02:29.6]} 21. Qb4
{[%clk 0:00:49.5]} 21... f4 {[%clk 0:02:26.5]} 22. Bc5 {[%clk 0:00:49.2]} 22...
Rf6 {[%clk 0:02:21.6]} 23. Bxc4 {[%clk 0:00:47.1]} 23... Nxc4 {[%clk 0:02:19.4]}
24. Qxc4 {[%clk 0:00:47]} 24... Rxb6 {[%clk 0:02:17.5]} 25. b4 {[%clk
0:00:43.2]} 25... Bf8 {[%clk 0:02:15.9]} 26. Na4 {[%clk 0:00:43.4]} 26... Rb5
{[%clk 0:02:11.3]} 27. Kh1 {[%clk 0:00:42.4]} 27... Qc7 {[%clk 0:01:45.5]} 28.
d6+ {[%clk 0:00:41.8]} 28... Qf7 {[%clk 0:01:38.2]} 29. Qxf7+ {[%clk 0:00:35.8]}
29... Kxf7 {[%clk 0:01:11.1]} 30. Rfd1 {[%clk 0:00:34.2]} 30... Rd8 {[%clk
0:01:09.1]} 31. Nc3 {[%clk 0:00:32.9]} 31... Bc6 {[%clk 0:00:50]} 32. Rxa6
{[%clk 0:00:32.1]} 32... Bb7 {[%clk 0:00:43.1]} 33. Ra7 {[%clk 0:00:31.4]} 33...
Rxc5 {[%clk 0:00:38.4]} 34. Rxb7+ {[%clk 0:00:29.4]} 34... Rc7 {[%clk
0:00:34.2]} 35. dxc7 {[%clk 0:00:25.1]} 35... Rc8 {[%clk 0:00:20.6]} 36. Rd8
{[%clk 0:00:23.3]} 36... Rxc7 {[%clk 0:00:20.7]} 37. Rxc7+ {[%clk 0:00:23]}
37... Kf6 {[%clk 0:00:22.6]} 38. Nd5+ {[%clk 0:00:22.9]} 38... Kg5 {[%clk
0:00:24.5]} 39. Rxf8 {[%clk 0:00:23.6]} 39... Kh4 {[%clk 0:00:26.4]} 40. Rxh7+
{[%clk 0:00:23]} 40... Kg3 {[%clk 0:00:26.1]} 41. Kg1 {[%clk 0:00:23.6]} 41...
g5 {[%clk 0:00:26.1]} 42. Ne7 {[%clk 0:00:20.3]} 42... g4 {[%clk 0:00:22.2]} 43.
Nf5# {[%clk 0:00:21.5]} 1-0

[Event "*** Titled Tuesday Blitz"]
[Site "Chess.com"]
[Date "2018.09.04"]
[Round "5"]
[White "chess_rehab"]
[Black "Slovak_fighter2000"]
[Result "0-1"]
[WhiteElo "2235"]
[BlackElo "2404"]
[TimeControl "180+2"]
[EndTime "14:41:13 PDT"]
[Termination "Slovak_fighter2000 won by resignation"]

1. e4 {[%clk 0:03:01.9]} 1... e6 {[%clk 0:02:58.2]} 2. d4 {[%clk 0:02:57]} 2...
d5 {[%clk 0:02:58.6]} 3. Nc3 {[%clk 0:02:56.9]} 3... Nf6 {[%clk 0:02:34.9]} 4.
e5 {[%clk 0:02:58.8]} 4... Nfd7 {[%clk 0:02:35.5]} 5. f4 {[%clk 0:02:58.6]} 5...
c5 {[%clk 0:02:30.6]} 6. Nf3 {[%clk 0:02:59]} 6... Nc6 {[%clk 0:02:32.1]} 7. Be3
{[%clk 0:02:57.2]} 7... Be7 {[%clk 0:02:33.4]} 8. h4 {[%clk 0:02:50]} 8... O-O
{[%clk 0:02:26.2]} 9. Bd3 {[%clk 0:02:49.3]} 9... h6 {[%clk 0:02:24.6]} 10. dxc5
{[%clk 0:02:43.9]} 10... Bxc5 {[%clk 0:02:23.4]} 11. Bxc5 {[%clk 0:02:35.4]}
11... Nxc5 {[%clk 0:02:21.8]} 12. Qd2 {[%clk 0:02:25.1]} 12... f6 {[%clk
0:02:17.4]} 13. O-O-O {[%clk 0:02:17.9]} 13... Nxd3+ {[%clk 0:02:00.4]} 14. Qxd3
{[%clk 0:02:16.9]} 14... fxe5 {[%clk 0:01:55]} 15. fxe5 {[%clk 0:02:12.7]} 15...
Qc7 {[%clk 0:01:51.5]} 16. Ng5 {[%clk 0:01:57.8]} 16... hxg5 {[%clk 0:01:44.3]}
17. hxg5 {[%clk 0:01:57.8]} 17... Rf5 {[%clk 0:01:42.6]} 18. g6 {[%clk
0:01:56.6]} 18... Nxe5 {[%clk 0:01:40]} 19. Rh8+ {[%clk 0:01:24.8]} 19... Kxh8
{[%clk 0:01:39.6]} 20. Qh3+ {[%clk 0:01:25.6]} 20... Kg8 {[%clk 0:01:40.7]} 21.
Qh7+ {[%clk 0:01:26]} 21... Kf8 {[%clk 0:01:41.7]} 22. Qh8+ {[%clk 0:01:25.8]}
22... Ke7 {[%clk 0:01:42.8]} 23. Qxg7+ {[%clk 0:01:27]} 23... Nf7 {[%clk
0:01:28.5]} 24. gxf7 {[%clk 0:01:15.8]} 24... Qf4+ {[%clk 0:01:29]} 25. Kb1
{[%clk 0:01:15.3]} 25... Rxf7 {[%clk 0:01:30.5]} 26. Qh8 {[%clk 0:00:51.8]}
26... Qf6 {[%clk 0:01:26.3]} 27. Qh2 {[%clk 0:00:42.2]} 27... Qf4 {[%clk
0:01:18.1]} 28. Qh8 {[%clk 0:00:41.2]} 28... Rf8 {[%clk 0:01:16.9]} 29. Qg7+
{[%clk 0:00:39.9]} 29... Qf7 {[%clk 0:01:16.2]} 30. Qe5 {[%clk 0:00:39]} 30...
Kd8 {[%clk 0:01:12.8]} 31. Qd6+ {[%clk 0:00:28.4]} 31... Bd7 {[%clk 0:01:00.1]}
32. Nb5 {[%clk 0:00:15.9]} 32... Rc8 {[%clk 0:00:47.9]} 33. Nxa7 {[%clk
0:00:16]} 33... Qf1 {[%clk 0:00:45]} 34. Qb6+ {[%clk 0:00:10.1]} 34... Ke8
{[%clk 0:00:43.6]} 35. Qd4 {[%clk 0:00:10.9]} 35... Rc4 {[%clk 0:00:40.9]} 36.
Qd2 {[%clk 0:00:08.8]} 36... Rf2 {[%clk 0:00:39.8]} 37. Qc1 {[%clk 0:00:04.3]}
37... Qxg2 {[%clk 0:00:37.4]} 38. Rg1 {[%clk 0:00:04.5]} 38... Rcxc2 {[%clk
0:00:33.6]} 39. Rxg2 {[%clk 0:00:05.9]} 39... Rxc1+ {[%clk 0:00:34.8]} 40. Kxc1
{[%clk 0:00:06.6]} 40... Rxg2 {[%clk 0:00:36.7]} 41. a4 {[%clk 0:00:07.6]} 41...
Bxa4 {[%clk 0:00:35.8]} 42. b3 {[%clk 0:00:08.5]} 42... Bd7 {[%clk 0:00:35.9]}
43. b4 {[%clk 0:00:08.5]} 43... Ra2 {[%clk 0:00:36.4]} 44. b5 {[%clk 0:00:09.8]}
44... Rxa7 {[%clk 0:00:36.9]} 0-1